[Event "December 5 Late 2023"]
[Site "https://www.chess.com"]
[Date "2023.12.05"]
[Round "5"]
[White "Gerbelli Neto, Eduardo"]
[Black "Leenhouts, Koen"]
[Result "0-1"]
[Board "110"]
[TimeControl "180+1"]
[WhiteFideId "2103281"]
[BlackFideId "1008439"]
[WhiteElo "2327"]
[BlackElo "2519"]
[WhiteTeam "BRA"]
[BlackTeam "NED"]
[WhiteClock "0:00:00"]
[BlackClock "0:00:29"]

1. e4 {[%clk 0:03:00]}  e6 {[%clk 0:02:57]} 2. d4 {[%clk 0:03:00]}  d5 {[%clk 0:02:56]} 3. Nc3 {[%clk 0:03:01]}  Bb4 {[%clk 0:02:55]} 4. Ne2 {[%clk 0:02:59]}  dxe4 {[%clk 0:02:53]} 5. a3 {[%clk 0:02:59]}  Be7 {[%clk 0:02:52]} 6. Nxe4 {[%clk 0:02:59]}  Nf6 {[%clk 0:02:52]} 7. N2g3 {[%clk 0:02:54]}  Nbd7 {[%clk 0:02:45]} 8. Bd3 {[%clk 0:02:45]}  b6 {[%clk 0:02:38]} 9. O-O {[%clk 0:02:33]}  Bb7 {[%clk 0:02:37]} 10. Qe2 {[%clk 0:02:22]}  O-O {[%clk 0:02:34]} 11. c4 {[%clk 0:02:14]}  c5 {[%clk 0:02:18]} 12. dxc5 {[%clk 0:02:08]}  Nxc5 {[%clk 0:02:16]} 13. Nxc5 {[%clk 0:02:07]}  Bxc5 {[%clk 0:02:11]} 14. Bg5 {[%clk 0:02:06]}  Be7 {[%clk 0:02:11]} 15. Rad1 {[%clk 0:01:52]}  Qc7 {[%clk 0:02:11]} 16. b4 {[%clk 0:01:47]}  Rfd8 {[%clk 0:02:05]} 17. Rfe1 {[%clk 0:01:40]}  a5 {[%clk 0:01:54]} 18. Bxf6 {[%clk 0:01:18]}  Bxf6 {[%clk 0:01:51]} 19. Ne4 {[%clk 0:01:18]}  Be7 {[%clk 0:01:42]} 20. Rb1 {[%clk 0:01:13]}  axb4 {[%clk 0:01:39]} 21. axb4 {[%clk 0:01:14]}  Ra3 {[%clk 0:01:35]} 22. Red1 {[%clk 0:01:11]}  Qf4 {[%clk 0:01:33]} 23. f3 {[%clk 0:01:07]}  Qe5 {[%clk 0:01:26]} 24. Bc2 {[%clk 0:00:54]}  Rd4 {[%clk 0:01:15]} 25. Rxd4 {[%clk 0:00:40]}  Qxd4+ {[%clk 0:01:14]} 26. Nf2 {[%clk 0:00:28]}  Ra1 {[%clk 0:01:11]} 27. Rxa1 {[%clk 0:00:03]}  Qxa1+ {[%clk 0:01:12]} 28. Qd1 {[%clk 0:00:03]}  Qxd1+ {[%clk 0:01:09]} 29. Nxd1 {[%clk 0:00:04]}  Bxb4 {[%clk 0:01:09]} 30. Kf1 {[%clk 0:00:04]}  h6 {[%clk 0:01:05]} 31. Ke2 {[%clk 0:00:05]}  Kf8 {[%clk 0:01:01]} 32. Nb2 {[%clk 0:00:05]}  Ke7 {[%clk 0:01:00]} 33. Nd3 {[%clk 0:00:04]}  Bd6 {[%clk 0:01:00]} 34. g3 {[%clk 0:00:04]}  Ba6 {[%clk 0:00:55]} 35. Bb3 {[%clk 0:00:03]}  Bc5 {[%clk 0:00:52]} 36. Kd2 {[%clk 0:00:02]}  Kd6 {[%clk 0:00:51]} 37. h3 {[%clk 0:00:02]}  Bb7 {[%clk 0:00:48]} 38. f4 {[%clk 0:00:02]}  g5 {[%clk 0:00:44]} 39. Ne5 {[%clk 0:00:01]}  Ke7 {[%clk 0:00:37]} 40. fxg5 {[%clk 0:00:02]}  hxg5 {[%clk 0:00:36]} 41. Kd3 {[%clk 0:00:00]}  Bd6 {[%clk 0:00:29]} 0-1

[Event "December 5 Late 2023"]
[Site "https://www.chess.com"]
[Date "2023.12.05"]
[Round "5"]
[White "Kornyukov, Alexey"]
[Black "Chylewski, Patryk"]
[Result "0-1"]
[Board "111"]
[TimeControl "180+1"]
[WhiteFideId "4150457"]
[BlackFideId "1186191"]
[WhiteElo "2323"]
[BlackElo "2514"]
[WhiteTeam "RUS"]
[BlackTeam "POL"]
[WhiteClock "0:00:04"]
[BlackClock "0:00:11"]

1. d4 {[%clk 0:03:00]}  Nf6 {[%clk 0:02:58]} 2. c4 {[%clk 0:02:59]}  e6 {[%clk 0:02:55]} 3. Nc3 {[%clk 0:02:58]}  Bb4 {[%clk 0:02:53]} 4. f3 {[%clk 0:02:58]}  d5 {[%clk 0:02:48]} 5. a3 {[%clk 0:02:56]}  Bxc3+ {[%clk 0:02:33]} 6. bxc3 {[%clk 0:02:57]}  c5 {[%clk 0:02:26]} 7. e3 {[%clk 0:02:56]}  O-O {[%clk 0:02:20]} 8. cxd5 {[%clk 0:02:56]}  Nxd5 {[%clk 0:02:17]} 9. Bd2 {[%clk 0:02:55]}  b6 {[%clk 0:02:14]} 10. f4 {[%clk 0:02:54]}  Bb7 {[%clk 0:02:10]} 11. Nf3 {[%clk 0:02:54]}  Nf6 {[%clk 0:02:06]} 12. Bd3 {[%clk 0:02:52]}  Ne4 {[%clk 0:01:48]} 13. Qc2 {[%clk 0:02:38]}  f5 {[%clk 0:01:43]} 14. O-O {[%clk 0:02:33]}  Nd7 {[%clk 0:01:42]} 15. Qb3 {[%clk 0:02:05]}  Qe7 {[%clk 0:01:30]} 16. Bxe4 {[%clk 0:01:44]}  Bxe4 {[%clk 0:01:28]} 17. Ng5 {[%clk 0:01:44]}  Bd5 {[%clk 0:01:19]} 18. c4 {[%clk 0:01:43]}  Bb7 {[%clk 0:01:17]} 19. d5 {[%clk 0:01:05]}  exd5 {[%clk 0:01:07]} 20. cxd5 {[%clk 0:01:06]}  Qd6 {[%clk 0:01:06]} 21. Bc3 {[%clk 0:00:55]}  Qxd5 {[%clk 0:00:50]} 22. Qb2 {[%clk 0:00:54]}  Nf6 {[%clk 0:00:47]} 23. Rad1 {[%clk 0:00:47]}  Qc6 {[%clk 0:00:34]} 24. Bxf6 {[%clk 0:00:31]}  Rxf6 {[%clk 0:00:25]} 25. Rf2 {[%clk 0:00:25]}  h6 {[%clk 0:00:24]} 26. Nf3 {[%clk 0:00:25]}  Qe4 {[%clk 0:00:16]} 27. Rd7 {[%clk 0:00:22]}  Bc6 {[%clk 0:00:11]} 28. Rc7 {[%clk 0:00:12]}  Rd8 {[%clk 0:00:11]} 29. h3 {[%clk 0:00:11]}  Qxe3 {[%clk 0:00:08]} 30. Kh2 {[%clk 0:00:09]}  Qxf4+ {[%clk 0:00:08]} 31. Kh1 {[%clk 0:00:08]}  Qxc7 {[%clk 0:00:08]} 32. Ne5 {[%clk 0:00:08]}  Qd6 {[%clk 0:00:07]} 33. Re2 {[%clk 0:00:05]}  Be4 {[%clk 0:00:07]} 34. Kh2 {[%clk 0:00:05]}  c4 {[%clk 0:00:06]} 35. g3 {[%clk 0:00:03]}  Re6 {[%clk 0:00:06]} 36. Nxc4 {[%clk 0:00:03]}  Qd3 {[%clk 0:00:05]} 37. Rd2 {[%clk 0:00:03]}  Qxc4 {[%clk 0:00:04]} 38. Rxd8+ {[%clk 0:00:03]}  Kh7 {[%clk 0:00:04]} 39. Qd2 {[%clk 0:00:04]}  Qc2 {[%clk 0:00:04]} 40. Qxc2 {[%clk 0:00:03]}  Bxc2 {[%clk 0:00:05]} 41. Rd7 {[%clk 0:00:04]}  a5 {[%clk 0:00:05]} 42. Kg1 {[%clk 0:00:04]}  Be4 {[%clk 0:00:05]} 43. Rd4 {[%clk 0:00:03]}  b5 {[%clk 0:00:05]} 44. Kf2 {[%clk 0:00:04]}  Rb6 {[%clk 0:00:05]} 45. g4 {[%clk 0:00:03]}  b4 {[%clk 0:00:06]} 46. gxf5 {[%clk 0:00:03]}  Bxf5 {[%clk 0:00:06]} 47. axb4 {[%clk 0:00:03]}  axb4 {[%clk 0:00:07]} 48. Rd5 {[%clk 0:00:03]}  b3 {[%clk 0:00:07]} 49. Rxf5 {[%clk 0:00:03]}  b2 {[%clk 0:00:07]} 50. Rb5 {[%clk 0:00:03]}  Rxb5 {[%clk 0:00:07]} 51. Kg3 {[%clk 0:00:04]}  b1=Q {[%clk 0:00:08]} 52. Kh4 {[%clk 0:00:05]}  Qe4+ {[%clk 0:00:09]} 53. Kg3 {[%clk 0:00:04]}  Rb3+ {[%clk 0:00:09]} 54. Kf2 {[%clk 0:00:04]}  Qc2+ {[%clk 0:00:10]} 55. Ke1 {[%clk 0:00:04]}  Rb1# {[%clk 0:00:11]} 0-1

[Event "December 5 Late 2023"]
[Site "https://www.chess.com"]
[Date "2023.12.05"]
[Round "5"]
[White "Sarkar, Justin"]
[Black "Senft, Sean"]
[Result "1-0"]
[Board "113"]
[TimeControl "180+1"]
[WhiteFideId "2010011"]
[BlackFideId "2044960"]
[WhiteElo "2289"]
[BlackElo "2486"]
[WhiteTeam "USA"]
[BlackTeam "USA"]
[WhiteClock "0:01:00"]
[BlackClock "0:01:11"]

1. d4 {[%clk 0:02:43]}  d5 {[%clk 0:02:59]} 2. e4 {[%clk 0:02:42]}  dxe4 {[%clk 0:02:58]} 3. Nc3 {[%clk 0:02:41]}  Nf6 {[%clk 0:02:57]} 4. f3 {[%clk 0:02:40]}  exf3 {[%clk 0:02:52]} 5. Nxf3 {[%clk 0:02:40]}  e6 {[%clk 0:02:50]} 6. Bg5 {[%clk 0:02:37]}  Be7 {[%clk 0:02:43]} 7. Bd3 {[%clk 0:02:34]}  Nbd7 {[%clk 0:02:41]} 8. O-O {[%clk 0:02:31]}  O-O {[%clk 0:02:38]} 9. Qe2 {[%clk 0:02:27]}  b6 {[%clk 0:02:32]} 10. Rad1 {[%clk 0:02:22]}  Bb7 {[%clk 0:02:31]} 11. Ne5 {[%clk 0:02:18]}  Nd5 {[%clk 0:02:20]} 12. Bxh7+ {[%clk 0:02:03]}  Kxh7 {[%clk 0:02:19]} 13. Qh5+ {[%clk 0:02:02]}  Kg8 {[%clk 0:02:19]} 14. Nxf7 {[%clk 0:02:00]}  Rxf7 {[%clk 0:02:08]} 15. Qxf7+ {[%clk 0:01:59]}  Kh8 {[%clk 0:02:09]} 16. Qh5+ {[%clk 0:01:45]}  Kg8 {[%clk 0:02:09]} 17. Qf7+ {[%clk 0:01:35]}  Kh8 {[%clk 0:02:06]} 18. Bxe7 {[%clk 0:01:21]}  Qxe7 {[%clk 0:02:01]} 19. Nxd5 {[%clk 0:01:20]}  Qg5 {[%clk 0:01:25]} 20. Rd3 {[%clk 0:01:04]}  Nf6 {[%clk 0:01:12]} 21. Rh3+ {[%clk 0:01:01]}  Nh7 {[%clk 0:01:12]} 22. Qf8+ {[%clk 0:00:59]}  Rxf8 {[%clk 0:01:11]} 23. Rxf8# {[%clk 0:01:00]} 1-0

[Event "December 5 Late 2023"]
[Site "https://www.chess.com"]
[Date "2023.12.05"]
[Round "5"]
[White "Dong, Kyle Qiyu"]
[Black "Argandona Riveiro, Inigo"]
[Result "0-1"]
[Board "116"]
[TimeControl "180+1"]
[WhiteFideId "30977380"]
[BlackFideId "2212072"]
[WhiteElo "2271"]
[BlackElo "2442"]
[WhiteTeam "USA"]
[BlackTeam "ESP"]
[WhiteClock "0:00:00"]
[BlackClock "0:00:15"]

1. e4 {[%clk 0:03:00]}  d6 {[%clk 0:03:00]} 2. d4 {[%clk 0:02:58]}  Nf6 {[%clk 0:03:01]} 3. Nc3 {[%clk 0:02:56]}  e5 {[%clk 0:03:02]} 4. Nf3 {[%clk 0:02:49]}  Nbd7 {[%clk 0:03:01]} 5. Be2 {[%clk 0:02:46]}  Be7 {[%clk 0:03:00]} 6. h3 {[%clk 0:02:44]}  O-O {[%clk 0:03:00]} 7. Be3 {[%clk 0:02:43]}  c6 {[%clk 0:02:59]} 8. O-O {[%clk 0:02:41]}  b5 {[%clk 0:02:58]} 9. a3 {[%clk 0:02:37]}  Bb7 {[%clk 0:02:56]} 10. Qd3 {[%clk 0:02:25]}  exd4 {[%clk 0:02:26]} 11. Bxd4 {[%clk 0:02:16]}  c5 {[%clk 0:02:21]} 12. Bxf6 {[%clk 0:02:14]}  Nxf6 {[%clk 0:02:22]} 13. Qxb5 {[%clk 0:02:12]}  Rb8 {[%clk 0:02:18]} 14. Qc4 {[%clk 0:02:09]}  Nxe4 {[%clk 0:02:14]} 15. Nxe4 {[%clk 0:01:40]}  d5 {[%clk 0:02:14]} 16. Nf6+ {[%clk 0:01:40]}  Bxf6 {[%clk 0:02:14]} 17. Qxc5 {[%clk 0:01:39]}  Bxb2 {[%clk 0:02:03]} 18. Rab1 {[%clk 0:01:38]}  Bf6 {[%clk 0:01:51]} 19. Qxa7 {[%clk 0:01:28]}  Bc6 {[%clk 0:01:37]} 20. Rxb8 {[%clk 0:01:20]}  Qxb8 {[%clk 0:01:38]} 21. Qc5 {[%clk 0:01:16]}  Rc8 {[%clk 0:01:32]} 22. Bd3 {[%clk 0:01:02]}  g6 {[%clk 0:01:15]} 23. Re1 {[%clk 0:00:55]}  d4 {[%clk 0:01:11]} 24. Qa5 {[%clk 0:00:40]}  Bxf3 {[%clk 0:01:08]} 25. gxf3 {[%clk 0:00:39]}  Qf4 {[%clk 0:01:03]} 26. Qd5 {[%clk 0:00:38]}  Rd8 {[%clk 0:00:58]} 27. Qe4 {[%clk 0:00:32]}  Qc7 {[%clk 0:00:45]} 28. a4 {[%clk 0:00:27]}  Kg7 {[%clk 0:00:43]} 29. f4 {[%clk 0:00:25]}  Rd7 {[%clk 0:00:28]} 30. Qf3 {[%clk 0:00:20]}  Qa5 {[%clk 0:00:26]} 31. Bb5 {[%clk 0:00:12]}  Qxe1+ {[%clk 0:00:25]} 32. Kg2 {[%clk 0:00:12]}  Re7 {[%clk 0:00:25]} 33. Qd3 {[%clk 0:00:11]}  Qe4+ {[%clk 0:00:24]} 34. Qxe4 {[%clk 0:00:11]}  Rxe4 {[%clk 0:00:25]} 35. Kf3 {[%clk 0:00:12]}  Re7 {[%clk 0:00:25]} 36. a5 {[%clk 0:00:13]}  Ra7 {[%clk 0:00:24]} 37. a6 {[%clk 0:00:13]}  Kf8 {[%clk 0:00:23]} 38. Ke4 {[%clk 0:00:13]}  Ke7 {[%clk 0:00:23]} 39. Kd5 {[%clk 0:00:13]}  Kd8 {[%clk 0:00:19]} 40. Kc6 {[%clk 0:00:14]}  d3 {[%clk 0:00:17]} 41. Bxd3 {[%clk 0:00:08]}  Bd4 {[%clk 0:00:17]} 42. f3 {[%clk 0:00:07]}  Ke7 {[%clk 0:00:17]} 43. Bb5 {[%clk 0:00:06]}  Bf2 {[%clk 0:00:17]} 44. c4 {[%clk 0:00:06]}  h5 {[%clk 0:00:16]} 45. c5 {[%clk 0:00:06]}  Kd8 {[%clk 0:00:16]} 46. Kb6 {[%clk 0:00:06]}  Bxc5+ {[%clk 0:00:14]} 47. Kxc5 {[%clk 0:00:00]}  Kc7 {[%clk 0:00:15]} 0-1

[Event "December 5 Late 2023"]
[Site "https://www.chess.com"]
[Date "2023.12.05"]
[Round "5"]
[White "Teumer, Joerg, Dr."]
[Black "Stevens, Matthew"]
[Result "0-1"]
[Board "117"]
[TimeControl "180+1"]
[WhiteFideId "4643526"]
[BlackFideId "2067633"]
[WhiteElo "2124"]
[BlackElo "2346"]
[WhiteTeam "GER"]
[BlackTeam "USA"]
[WhiteClock "0:00:00"]
[BlackClock "0:00:06"]

1. d4 {[%clk 0:03:00]}  Nf6 {[%clk 0:02:58]} 2. Bg5 {[%clk 0:02:58]}  Ne4 {[%clk 0:02:53]} 3. Bf4 {[%clk 0:02:58]}  d5 {[%clk 0:02:52]} 4. e3 {[%clk 0:02:53]}  Bf5 {[%clk 0:02:49]} 5. f3 {[%clk 0:02:51]}  Nf6 {[%clk 0:02:43]} 6. c4 {[%clk 0:02:47]}  c6 {[%clk 0:02:43]} 7. Qb3 {[%clk 0:02:36]}  Qb6 {[%clk 0:02:12]} 8. c5 {[%clk 0:02:16]}  Qxb3 {[%clk 0:02:11]} 9. axb3 {[%clk 0:02:17]}  Nbd7 {[%clk 0:02:06]} 10. b4 {[%clk 0:02:14]}  Bxb1 {[%clk 0:02:05]} 11. Rxb1 {[%clk 0:02:13]}  a6 {[%clk 0:02:06]} 12. Bd3 {[%clk 0:02:00]}  Nh5 {[%clk 0:01:58]} 13. Ne2 {[%clk 0:01:57]}  Nxf4 {[%clk 0:01:55]} 14. Nxf4 {[%clk 0:01:57]}  e5 {[%clk 0:01:54]} 15. Ne2 {[%clk 0:01:51]}  g6 {[%clk 0:01:49]} 16. Kd2 {[%clk 0:01:45]}  Bh6 {[%clk 0:01:39]} 17. f4 {[%clk 0:01:38]}  exf4 {[%clk 0:01:33]} 18. exf4 {[%clk 0:01:36]}  O-O {[%clk 0:01:26]} 19. g3 {[%clk 0:01:35]}  Rfe8 {[%clk 0:01:26]} 20. Rhe1 {[%clk 0:01:32]}  Bg7 {[%clk 0:01:25]} 21. b3 {[%clk 0:01:11]}  Re7 {[%clk 0:01:12]} 22. Ng1 {[%clk 0:01:00]}  Rxe1 {[%clk 0:01:02]} 23. Rxe1 {[%clk 0:01:00]}  Bxd4 {[%clk 0:01:03]} 24. Nf3 {[%clk 0:01:00]}  Bf6 {[%clk 0:01:00]} 25. Re2 {[%clk 0:00:54]}  Kf8 {[%clk 0:00:59]} 26. h3 {[%clk 0:00:51]}  Re8 {[%clk 0:00:54]} 27. Rxe8+ {[%clk 0:00:49]}  Kxe8 {[%clk 0:00:55]} 28. g4 {[%clk 0:00:46]}  Ke7 {[%clk 0:00:44]} 29. Bc2 {[%clk 0:00:46]}  Nf8 {[%clk 0:00:43]} 30. f5 {[%clk 0:00:39]}  g5 {[%clk 0:00:31]} 31. Kd3 {[%clk 0:00:33]}  h6 {[%clk 0:00:31]} 32. Bd1 {[%clk 0:00:23]}  Nd7 {[%clk 0:00:31]} 33. Be2 {[%clk 0:00:21]}  Kf8 {[%clk 0:00:29]} 34. Bf1 {[%clk 0:00:20]}  Kg7 {[%clk 0:00:28]} 35. Be2 {[%clk 0:00:20]}  Bd8 {[%clk 0:00:28]} 36. Nd4 {[%clk 0:00:20]}  a5 {[%clk 0:00:25]} 37. bxa5 {[%clk 0:00:17]}  Nxc5+ {[%clk 0:00:24]} 38. Ke3 {[%clk 0:00:17]}  Bxa5 {[%clk 0:00:24]} 39. Nc2 {[%clk 0:00:15]}  Bb6 {[%clk 0:00:24]} 40. Kf3 {[%clk 0:00:15]}  Ne4 {[%clk 0:00:23]} 41. Bd3 {[%clk 0:00:14]}  Nd6 {[%clk 0:00:22]} 42. b4 {[%clk 0:00:14]}  Kf6 {[%clk 0:00:22]} 43. Be2 {[%clk 0:00:13]}  Bc7 {[%clk 0:00:22]} 44. Bd3 {[%clk 0:00:12]}  Nb5 {[%clk 0:00:22]} 45. Bxb5 {[%clk 0:00:12]}  cxb5 {[%clk 0:00:23]} 46. Nd4 {[%clk 0:00:11]}  Bd6 {[%clk 0:00:23]} 47. Nxb5 {[%clk 0:00:09]}  Bxb4 {[%clk 0:00:23]} 48. Ke3 {[%clk 0:00:10]}  Bc5+ {[%clk 0:00:22]} 49. Kd3 {[%clk 0:00:10]}  Ke5 {[%clk 0:00:21]} 50. Nc7 {[%clk 0:00:11]}  b6 {[%clk 0:00:20]} 51. Nb5 {[%clk 0:00:08]}  Kf4 {[%clk 0:00:19]} 52. Nc3 {[%clk 0:00:08]}  d4 {[%clk 0:00:17]} 53. Ne4 {[%clk 0:00:08]}  Kf3 {[%clk 0:00:15]} 54. Nf6 {[%clk 0:00:07]}  Kg3 {[%clk 0:00:14]} 55. Ng8 {[%clk 0:00:08]}  Bf8 {[%clk 0:00:11]} 56. Ke4 {[%clk 0:00:05]}  Kxh3 {[%clk 0:00:11]} 57. Nf6 {[%clk 0:00:06]}  Be7 {[%clk 0:00:07]} 58. Nd5 {[%clk 0:00:06]}  Bd8 {[%clk 0:00:07]} 59. Kxd4 {[%clk 0:00:05]}  Kxg4 {[%clk 0:00:08]} 60. Ke4 {[%clk 0:00:05]}  h5 {[%clk 0:00:08]} 61. Ne3+ {[%clk 0:00:06]}  Kg3 {[%clk 0:00:07]} 62. Nc4 {[%clk 0:00:06]}  Bc7 {[%clk 0:00:06]} 63. Ne3 {[%clk 0:00:04]}  h4 {[%clk 0:00:06]} 64. Nd5 {[%clk 0:00:05]}  Bd8 {[%clk 0:00:05]} 65. Ne3 {[%clk 0:00:04]}  h3 {[%clk 0:00:05]} 66. Nf1+ {[%clk 0:00:04]}  Kg2 {[%clk 0:00:05]} 67. Ne3+ {[%clk 0:00:05]}  Kg1 {[%clk 0:00:06]} 68. Ng4 {[%clk 0:00:00]}  h2 {[%clk 0:00:06]} 0-1

[Event "December 5 Late 2023"]
[Site "https://www.chess.com"]
[Date "2023.12.05"]
[Round "5"]
[White "Antonio, Jorge Carlos"]
[Black "Asish Panda"]
[Result "0-1"]
[Board "119"]
[TimeControl "180+1"]
[WhiteFideId "113190"]
[BlackFideId "45012458"]
[WhiteElo "2310"]
[BlackElo "2563"]
[WhiteTeam "ARG"]
[BlackTeam "IND"]
[WhiteClock "0:00:14"]
[BlackClock "0:00:04"]

1. d4 {[%clk 0:03:00]}  d5 {[%clk 0:02:58]} 2. Nf3 {[%clk 0:03:00]}  Nf6 {[%clk 0:02:58]} 3. Bf4 {[%clk 0:03:01]}  e6 {[%clk 0:02:56]} 4. e3 {[%clk 0:03:01]}  Bd6 {[%clk 0:02:56]} 5. Ne5 {[%clk 0:03:00]}  O-O {[%clk 0:02:56]} 6. Bd3 {[%clk 0:03:00]}  c5 {[%clk 0:02:54]} 7. c3 {[%clk 0:03:00]}  Nc6 {[%clk 0:02:53]} 8. Nd2 {[%clk 0:02:59]}  Qc7 {[%clk 0:02:28]} 9. Ndf3 {[%clk 0:02:57]}  Ne4 {[%clk 0:02:26]} 10. O-O {[%clk 0:02:49]}  f6 {[%clk 0:02:19]} 11. Nxc6 {[%clk 0:02:46]}  bxc6 {[%clk 0:02:16]} 12. Bxd6 {[%clk 0:02:45]}  Qxd6 {[%clk 0:02:14]} 13. Nd2 {[%clk 0:02:42]}  Nxd2 {[%clk 0:02:12]} 14. Qxd2 {[%clk 0:02:42]}  cxd4 {[%clk 0:02:12]} 15. exd4 {[%clk 0:02:41]}  e5 {[%clk 0:02:12]} 16. dxe5 {[%clk 0:02:41]}  fxe5 {[%clk 0:02:11]} 17. Rae1 {[%clk 0:02:26]}  Qf6 {[%clk 0:01:59]} 18. f3 {[%clk 0:02:14]}  Bf5 {[%clk 0:01:55]} 19. Bxf5 {[%clk 0:02:04]}  Qxf5 {[%clk 0:01:55]} 20. Qe3 {[%clk 0:02:04]}  Rfe8 {[%clk 0:01:53]} 21. Qc5 {[%clk 0:02:03]}  Re6 {[%clk 0:01:51]} 22. Re2 {[%clk 0:01:55]}  Rf8 {[%clk 0:01:39]} 23. Rfe1 {[%clk 0:01:52]}  Rg6 {[%clk 0:01:28]} 24. Kh1 {[%clk 0:01:46]}  e4 {[%clk 0:01:22]} 25. fxe4 {[%clk 0:01:43]}  Qh5 {[%clk 0:00:43]} 26. exd5 {[%clk 0:01:14]}  cxd5 {[%clk 0:00:39]} 27. Re8 {[%clk 0:01:06]}  Rf6 {[%clk 0:00:30]} 28. Rxf8+ {[%clk 0:00:59]}  Rxf8 {[%clk 0:00:28]} 29. Qxa7 {[%clk 0:00:36]}  h6 {[%clk 0:00:22]} 30. Qe3 {[%clk 0:00:35]}  Qg6 {[%clk 0:00:16]} 31. h3 {[%clk 0:00:33]}  Kh7 {[%clk 0:00:13]} 32. Rd1 {[%clk 0:00:30]}  Rf5 {[%clk 0:00:12]} 33. Qd3 {[%clk 0:00:29]}  h5 {[%clk 0:00:09]} 34. Kh2 {[%clk 0:00:25]}  h4 {[%clk 0:00:06]} 35. Qd4 {[%clk 0:00:22]}  Qg3+ {[%clk 0:00:06]} 36. Kh1 {[%clk 0:00:21]}  Rg5 {[%clk 0:00:06]} 37. Qg1 {[%clk 0:00:19]}  Rf5 {[%clk 0:00:05]} 38. Qe1 {[%clk 0:00:18]}  Qg5 {[%clk 0:00:04]} 39. Qd2 {[%clk 0:00:16]}  Rf1+ {[%clk 0:00:04]} 40. Kh2 {[%clk 0:00:14]}  Qg3# {[%clk 0:00:04]} 0-1

[Event "December 5 Late 2023"]
[Site "https://www.chess.com"]
[Date "2023.12.05"]
[Round "5"]
[White "Hajiyev, Kanan"]
[Black "Mohammad, Fahim"]
[Result "1-0"]
[Board "121"]
[TimeControl "180+1"]
[WhiteFideId "13404148"]
[BlackFideId "10206248"]
[WhiteElo "2527"]
[BlackElo "2305"]
[WhiteTeam "AZE"]
[BlackTeam "FRA"]
[WhiteClock "0:02:04"]
[BlackClock "0:00:03"]

1. d4 {[%clk 0:03:00]}  Nf6 {[%clk 0:02:56]} 2. Nf3 {[%clk 0:03:01]}  g6 {[%clk 0:02:55]} 3. c4 {[%clk 0:03:02]}  c5 {[%clk 0:02:54]} 4. g3 {[%clk 0:03:03]}  Bg7 {[%clk 0:02:54]} 5. d5 {[%clk 0:03:03]}  b5 {[%clk 0:02:53]} 6. cxb5 {[%clk 0:03:02]}  a6 {[%clk 0:02:53]} 7. d6 {[%clk 0:03:01]}  axb5 {[%clk 0:02:26]} 8. dxe7 {[%clk 0:02:58]}  Qxe7 {[%clk 0:02:26]} 9. Bg2 {[%clk 0:02:58]}  Bb7 {[%clk 0:02:24]} 10. O-O {[%clk 0:02:59]}  O-O {[%clk 0:02:24]} 11. a4 {[%clk 0:03:00]}  b4 {[%clk 0:02:20]} 12. Nbd2 {[%clk 0:03:00]}  d5 {[%clk 0:02:19]} 13. Rb1 {[%clk 0:02:57]}  Rd8 {[%clk 0:02:17]} 14. b3 {[%clk 0:02:57]}  Ne4 {[%clk 0:02:12]} 15. Nxe4 {[%clk 0:02:56]}  dxe4 {[%clk 0:02:13]} 16. Nd2 {[%clk 0:02:54]}  Nc6 {[%clk 0:01:21]} 17. e3 {[%clk 0:02:54]}  Ne5 {[%clk 0:01:18]} 18. Qc2 {[%clk 0:02:53]}  Nd3 {[%clk 0:00:56]} 19. Nc4 {[%clk 0:02:52]}  Kh8 {[%clk 0:00:53]} 20. Bb2 {[%clk 0:02:52]}  Nxb2 {[%clk 0:00:52]} 21. Nxb2 {[%clk 0:02:53]}  Rac8 {[%clk 0:00:50]} 22. Nc4 {[%clk 0:02:52]}  Rd3 {[%clk 0:00:48]} 23. Rfd1 {[%clk 0:02:48]}  Rcd8 {[%clk 0:00:48]} 24. h4 {[%clk 0:02:39]}  h6 {[%clk 0:00:48]} 25. Kh2 {[%clk 0:02:39]}  f5 {[%clk 0:00:43]} 26. Rd2 {[%clk 0:02:34]}  g5 {[%clk 0:00:40]} 27. hxg5 {[%clk 0:02:29]}  Qxg5 {[%clk 0:00:35]} 28. Rbd1 {[%clk 0:02:26]}  R8d7 {[%clk 0:00:21]} 29. Rxd3 {[%clk 0:02:22]}  exd3 {[%clk 0:00:20]} 30. Rxd3 {[%clk 0:02:23]}  Rxd3 {[%clk 0:00:15]} 31. Qxd3 {[%clk 0:02:24]}  Bxg2 {[%clk 0:00:14]} 32. Kxg2 {[%clk 0:02:25]}  h5 {[%clk 0:00:15]} 33. Qd1 {[%clk 0:02:15]}  h4 {[%clk 0:00:14]} 34. Qh1 {[%clk 0:02:15]}  Kg8 {[%clk 0:00:12]} 35. Qxh4 {[%clk 0:02:15]}  Qg6 {[%clk 0:00:12]} 36. Qf4 {[%clk 0:02:13]}  Qe6 {[%clk 0:00:12]} 37. a5 {[%clk 0:02:11]}  Qd5+ {[%clk 0:00:11]} 38. Qf3 {[%clk 0:02:11]}  Qd3 {[%clk 0:00:03]} 39. a6 {[%clk 0:02:04]} 1-0

[Event "December 5 Late 2023"]
[Site "https://www.chess.com"]
[Date "2023.12.05"]
[Round "5"]
[White "Sanchez Alvares, Kelvin Antonio"]
[Black "Weisz, Bryan"]
[Result "1-0"]
[Board "122"]
[TimeControl "180+1"]
[WhiteFideId "3906680"]
[BlackFideId "30934133"]
[WhiteElo "2518"]
[BlackElo "2292"]
[WhiteTeam "VEN"]
[BlackTeam "USA"]
[WhiteClock "0:01:19"]
[BlackClock "0:01:30"]

1. e4 {[%clk 0:02:52]}  Nc6 {[%clk 0:03:00]} 2. d4 {[%clk 0:02:51]}  d5 {[%clk 0:02:58]} 3. e5 {[%clk 0:02:51]}  Bf5 {[%clk 0:02:53]} 4. Nf3 {[%clk 0:02:45]}  e6 {[%clk 0:02:53]} 5. Bb5 {[%clk 0:02:41]}  f6 {[%clk 0:02:47]} 6. O-O {[%clk 0:02:40]}  Ne7 {[%clk 0:02:35]} 7. Re1 {[%clk 0:02:38]}  Ng6 {[%clk 0:02:34]} 8. exf6 {[%clk 0:02:33]}  Qxf6 {[%clk 0:02:33]} 9. h3 {[%clk 0:02:23]}  Bd6 {[%clk 0:02:32]} 10. Bg5 {[%clk 0:02:20]}  Qf7 {[%clk 0:02:31]} 11. Nc3 {[%clk 0:02:18]}  O-O {[%clk 0:02:30]} 12. Be3 {[%clk 0:02:17]}  Bxh3 {[%clk 0:02:29]} 13. Ng5 {[%clk 0:02:16]}  Qf5 {[%clk 0:02:25]} 14. Nxh3 {[%clk 0:02:16]}  Nh4 {[%clk 0:02:25]} 15. Bf1 {[%clk 0:02:10]}  Rf6 {[%clk 0:02:17]} 16. Bg5 {[%clk 0:02:08]}  Nxg2 {[%clk 0:02:08]} 17. Bxg2 {[%clk 0:01:57]}  Rg6 {[%clk 0:02:08]} 18. Qd3 {[%clk 0:01:56]}  Rxg5 {[%clk 0:02:02]} 19. Nxg5 {[%clk 0:01:53]}  Qxg5 {[%clk 0:02:02]} 20. Rxe6 {[%clk 0:01:50]}  Rf8 {[%clk 0:01:58]} 21. Nxd5 {[%clk 0:01:41]}  Qh4 {[%clk 0:01:54]} 22. f4 {[%clk 0:01:37]}  Rxf4 {[%clk 0:01:41]} 23. Nxf4 {[%clk 0:01:34]}  Qxf4 {[%clk 0:01:39]} 24. Re8+ {[%clk 0:01:21]}  Bf8 {[%clk 0:01:30]} 25. Rf1 {[%clk 0:01:19]} 1-0